Cogmind - Beta 13 @@@ ROGUE MODE // 2024.04.12 @ 09:44:18 Player: Patryk Z Result: Escaped! Performance ------------- Evolutions (9) 4500 Regions Visited (26) 5200 Robots Destroyed (127) 635 Value Destroyed (2688) 2688 Prototype IDs (58) 1160 Alien Tech Used (6) 1200 Bonus (6936) 6936 TOTAL SCORE: 22319 Bonus ------- High Alert Combat Kills 28 Follower Combat Kills 171 Met Data Miner 300 Met Zhirov 300 Met Warlord at Base 500 MAIN.C Attacked Warlord 500 Hacked Protovariant 500 Met Warlord at Command 2000 Win 3000 Friendly Fire -363 Cogmind --------- Core Integrity 1091/1600 Matter 173/300 Energy 156/160 System Corruption 1% Temperature Cool (10) Movement Flying (28) Location To Epsilon Eridani Parts ------- > --- POWER (2) -------- Light Fission Core Improved Fusion Compressor > --- PROPULSION (6) --- Xenon Bombardment Thruster Nuclear Pulse Thruster Nuclear Pulse Thruster Impulse Thruster Field Propulsion Array > --- UTILITY (16) ----- Enhanced Optical Array Improved Sensor Array Advanced Signal Interpreter Seismic Detector 0b10 Decoder Chip [Generic] Improved Reaction Control System Improved Hacking Suite Advanced Hacking Suite Experimental Hacking Suite System Mapper System Shield Improved System Shield Experimental System Shield > --- WEAPON (2) ------- Enhanced Gamma Bomb Array Phasing Sabre > --- INVENTORY (5) ---- Nuclear Pulse Thruster Subatomic Replicator Heavy Disruptor Cannon Peak State ------------ > --- POWER ------------ Backup Power III Light Angular Momentum Engine > --- PROPULSION ------- Improved VTOL Module Improved Cesium-ion Thruster Improved Cesium-ion Thruster Cooled Cesium-ion Thruster Q-thruster Cooled Impulse Thruster > --- UTILITY ---------- Structural Scanner Enhanced Optical Array Long-range Sensor Array Advanced Signal Interpreter Seismic Detector 0b10 Decoder Chip [Generic] Improved Launcher Guidance Computer Cloaking Device Advanced Cloaking Device Experimental Propulsion Shielding Improved Hacking Suite Advanced Hacking Suite Experimental Hacking Suite System Mapper Experimental System Shield > --- WEAPON ----------- Gamma Bomb Array Phasing Sabre > --- INVENTORY -------- Impulse Thruster Improved Sensor Array Subatomic Replicator [Rating: 147] Favorites ----------- Power Light Angular Momentum Engine Engine Light Angular Momentum Engine Power Core Meta Core Reactor Quantum Reactor Propulsion Light Treads Treads Light Treads Flight Unit Improved Cesium-ion Thruster Utility Terrain Scan Processor Device Improved Sensor Array Storage Large Storage Unit Processor Terrain Scan Processor Hackware Hacking Suite Protection Heavy Armor Plating Artifact Phase Armor Weapon Makeshift Sword Energy Gun Medium Laser Energy Cannon Heavy Disruptor Cannon Launcher Heavy Rocket Launcher Slashing Weapon Makeshift Sword Piercing Weapon Spear Build | -11 -10 -10 -10 -8 -7 -6 -6 -6 -6 -5 -5 -5 -5 -5 -4 -4 -4 -4 -4 -3 -3 -3 -2 -2 -1 -1 ------- Run | Yrd Mat Min Sub Mat Fac Fac Low Low Dat Pro Fac Upp Upp Zhi Pro Fac Upp Upp War Pro Res Tes Res Qua Acc Com Slots Evolved 18 | . . . . 4 2 2 . . . . 2 . . . . 2 . . . . 2 . 2 . 2 . Power 1 | . . . . . . . . . . . 1 . . . . . . . . . . . . . . . Propulsion 3 | . . . . 2 . . . . . . . . . . . . . . . . . . . . 1 . Utility 14 | . . . . 2 2 2 . . . . 1 . . . . 2 . . . . 2 . 2 . 1 . Weapon . | . . . . . . . . . . . . . . . . . . . . . . . . . . . Parts Attached 242 | 8 . 5 32 45 5 27 8 1 . 3 12 2 2 9 . 18 . . 3 2 11 18 1 2 9 19 Power 14 | 1 . . 4 2 . 1 . . . . 1 . . 2 . . . . . . . . . . 1 2 Engine 9 | 1 . . 4 2 . . . . . . 1 . . 1 . . . . . . . . . . . . Core 3 | . . . . . . 1 . . . . . . . . . . . . . . . . . . . 2 Reactor 2 | . . . . . . . . . . . . . . 1 . . . . . . . . . . 1 . Propulsion 46 | 2 . . 1 12 . 8 . . . 1 2 . 2 1 . 1 . . . 1 3 . . . 4 8 Treads 17 | 2 . . 1 11 . 3 . . . . . . . . . . . . . . . . . . . . Leg . | . . . . . . . . . . . . . . . . . . . . . . . . . . . Wheel . | . . . . . . . . . . . . . . . . . . . . . . . . . . . Hover . | . . . . . . . . . . . . . . . . . . . . . . . . . . . Flight 29 | . . . . 1 . 5 . . . 1 2 . 2 1 . 1 . . . 1 3 . . . 4 8 Utility 157 | 2 . 4 26 29 5 16 6 1 . 2 8 2 . 6 . 17 . . . 1 7 15 1 2 2 5 Device 104 | 1 . 3 21 15 3 11 2 . . 1 6 2 . 3 . 14 . . . 1 4 11 . 1 2 3 Storage 2 | 1 . . . 1 . . . . . . . . . . . . . . . . . . . . . . Processor 10 | . . 1 . 1 1 1 2 . . . . . . . . 2 . . . . 2 . . . . . Hackware 12 | . . . 1 . . . 2 1 . . 2 . . 1 . . . . . . . 3 . . . 2 Protection 28 | . . . 4 12 1 4 . . . 1 . . . 2 . 1 . . . . 1 1 1 . . . Artifact 1 | . . . . . . . . . . . . . . . . . . . . . . . . 1 . . Weapon 25 | 3 . 1 1 2 . 2 2 . . . 1 . . . . . . . 3 . 1 3 . . 2 4 Energy Gun 4 | 3 . . 1 . . . . . . . . . . . . . . . . . . . . . . . Energy Cannon 1 | . . . . . . . . . . . . . . . . . . . . . . . . . . 1 Ballistic Gun . | . . . . . . . . . . . . . . . . . . . . . . . . . . . Ballistic Cannon . | . . . . . . . . . . . . . . . . . . . . . . . . . . . Launcher 8 | . . . . . . 1 1 . . . 1 . . . . . . . . . . 3 . . 1 1 Special Weapon . | . . . . . . . . . . . . . . . . . . . . . . . . . . . Impact Weapon . | . . . . . . . . . . . . . . . . . . . . . . . . . . . Slashing Weapon 9 | . . 1 . 2 . 1 . . . . . . . . . . . . 1 . 1 . . . 1 2 Piercing Weapon 3 | . . . . . . . 1 . . . . . . . . . . . 2 . . . . . . . Special Melee Weapon . | . . . . . . . . . . . . . . . . . . . . . . . . . . . Unidentified Prototypes 20 | . . . 1 1 . . . . . 1 . . . 4 . . . . 1 . . 7 . 3 . 2 Parts Lost 36 | . . . 3 2 . 9 . . . . . . . . . 2 . . . 1 . 1 . . 17 1 Power 5 | . . . 1 1 . . . . . . . . . . . 1 . . . . . . . . 2 . Propulsion 15 | . . . 1 1 . 4 . . . . . . . . . 1 . . . 1 . . . . 7 . Utility 11 | . . . 1 . . 4 . . . . . . . . . . . . . . . . . . 6 . Weapon 5 | . . . . . . 1 . . . . . . . . . . . . . . . 1 . . 2 1 Highest Loss Streak 17 | . . . 1 1 . 8 . . . . . . . . . 2 . . . 1 . 1 . . 17 1 To Critical Strikes . | . . . . . . . . . . . . . . . . . . . . . . . . . . . Average Slot Usage (%) 85 | . 100 86 79 84 92 75 91 100 100 99 96 100 99 99 100 96 95 95 99 100 100 98 91 91 83 68 Engine 7 | . 14 14 9 8 7 . . . . . 4 5 5 5 5 4 5 5 9 10 9 9 8 8 5 . Core 1 | . . . . . . 4 5 5 5 5 5 5 5 5 5 1 . . . . . . . . . 6 Treads 17 | . 28 28 27 28 30 16 . . . . . . . . . . . . . . . . . . . . Flight 8 | . . . . . . 6 29 29 29 32 30 30 29 30 30 25 25 25 25 25 22 22 20 20 21 13 Device 11 | . 14 13 11 13 11 8 8 11 11 5 11 10 10 7 10 9 10 10 10 10 18 17 16 16 12 8 Storage 2 | . 14 7 . 8 7 5 1 . . . . . . . . . . . . . . . . . . . Processor 14 | . . 7 14 9 15 16 26 26 23 22 19 15 15 15 15 17 20 20 20 20 18 18 16 16 14 11 Hackware 7 | . . . . . . . 8 14 17 16 17 25 25 25 25 24 25 25 25 25 22 22 20 20 19 23 Protection 1 | . . . 1 3 3 5 . . . 4 1 . . 1 . 3 . . . . . . 4 4 2 . Launcher 1 | . . . . . . 1 3 5 5 5 1 5 5 5 5 4 5 5 5 5 4 2 . . 2 1 Slashing Weapon 9 | . . 12 14 12 15 8 . . . . . . . . . . . . 1 5 4 4 4 4 2 1 Naked Turns . | . . . . . . . . . . . . . . . . . . . . . . . . . . . Heaviest Build 66 | 15 15 15 9 48 49 66 29 21 21 21 29 26 26 26 26 27 20 20 24 24 27 27 21 21 34 35 Greatest Support 85 | 40 40 40 40 85 82 82 27 27 27 31 34 34 34 34 34 34 28 28 28 30 30 36 30 36 44 45 Greatest Overweight (x) 10 | . . . . 1 . 10 9 . . . . . . . . . . . . 1 . . . . 1 1 Average Overweight (x) . | . . . . . . 1 . . . . . . . . . . . . . . . . . . . . Largest Inventory Capacity 15 | 8 8 8 5 15 15 15 15 5 5 5 5 5 5 5 5 5 5 5 5 5 5 5 5 5 5 5 Average Capacity 7 | 7 8 6 5 14 15 15 7 5 5 5 5 5 5 5 5 5 5 5 5 5 5 5 5 5 5 5 Most Carried 15 | 3 4 8 5 15 15 15 14 5 5 5 5 5 5 5 5 5 5 5 5 5 5 5 4 5 4 5 Average Carried 6 | 1 3 5 4 11 13 14 6 5 5 4 4 5 4 4 5 4 5 4 5 4 4 4 4 4 2 3 Final Capacity 15 | 8 8 5 5 15 15 15 5 5 5 5 5 5 5 5 5 5 5 5 5 5 5 5 5 5 5 5 Final Carried 15 | 3 4 5 5 15 14 14 5 5 5 5 5 5 5 5 5 5 5 5 5 5 5 5 4 5 2 4 Class Distribution -------------------- 50% | Mutant 12% | Wizard-Scout 8% | Wizard-Ninja 5% | Hacker-Scout 5% | Assassin 4% | Hacker-Sprinter 4% | Scavenger-Gladiator 4% | Scavenger-Assassin Dominant Class ---------------- Mutant | -10/Materials Mutant | -10/Mines Mutant | -10/Subcaves Assassin | -8/Materials Scavenger-Assassin | -7/Factory Scavenger-Gladiator | -6/Factory Hacker-Sprinter | -6/Lower Caves Hacker-Sprinter | -6/Lower Caves Hacker-Sprinter | -6/Data Miner Hacker-Sprinter | -5/Proximity Caves Hacker-Scout | -5/Factory Hacker-Scout | -5/Upper Caves Hacker-Scout | -5/Upper Caves Hacker-Scout | -5/Zhirov Wizard-Scout | -4/Proximity Caves Wizard-Sprinter | -4/Factory Wizard-Scout | -4/Upper Caves Wizard-Scout | -4/Upper Caves Wizard-Scout | -4/Warlord Wizard-Scout | -3/Proximity Caves Wizard-Ninja | -3/Research Wizard-Ninja | -3/Testing Wizard-Ninja | -2/Research Wizard-Ninja | -2/Quarantine Wizard-Ninja | -1/Access Wizard-Scout | -1/Command Resources | -11 -10 -10 -10 -8 -7 -6 -6 -6 -6 -5 -5 -5 -5 -5 -4 -4 -4 -4 -4 -3 -3 -3 -2 -2 -1 -1 ----------- Run | Yrd Mat Min Sub Mat Fac Fac Low Low Dat Pro Fac Upp Upp Zhi Pro Fac Upp Upp War Pro Res Tes Res Qua Acc Com Matter Collected 3208 | 280 . 40 310 440 60 168 373 10 . . 258 82 35 . 28 395 . . 30 20 78 208 . 10 5 378 Remotely . | . . . . . . . . . . . . . . . . . . . . . . . . . . . Salvage Created 5594 | 15 . 670 118 1878 147 476 118 . . . 595 103 21 . . 415 278 . . . 78 . . 10 71 601 Parts 293 | 3 . 48 4 107 10 34 4 . . . 40 1 2 . . 12 . . . . 8 . . 1 4 15 Haulers Intercepted 6 | . . . . 3 . . . . . . 1 . . . . 2 . . . . . . . . . . Recyclers Shooed 5 | . . 2 . . . 2 . . . . . . . . . 1 . . . . . . . . . . Parts Field Recycled . | . . . . . . . . . . . . . . . . . . . . . . . . . . . Retrieved Matter . | . . . . . . . . . . . . . . . . . . . . . . . . . . . Parts Self-Destructed 25 | . . . 20 . . . 4 . . . . . 1 . . . . . . . . . . . . . Prevented . | . . . . . . . . . . . . . . . . . . . . . . . . . . . Kills | -11 -10 -10 -10 -8 -7 -6 -6 -6 -6 -5 -5 -5 -5 -5 -4 -4 -4 -4 -4 -3 -3 -3 -2 -2 -1 -1 ------- Run | Yrd Mat Min Sub Mat Fac Fac Low Low Dat Pro Fac Upp Upp Zhi Pro Fac Upp Upp War Pro Res Tes Res Qua Acc Com Combat Hostiles Destroyed 42 | . . 2 3 18 4 9 . . . . 2 . 1 . 1 . . . . . . . . . 2 . Melee 33 | . . 2 3 18 4 4 . . . . . . . . . . . . . . . . . . 2 . AOE 9 | . . . . . . 5 . . . . 2 . 1 . 1 . . . . . . . . . . . Classes Destroyed 20 | 1 . 4 3 4 1 3 1 . . . . . . . 1 . . . . . . . . . 1 1 Worker 34 | . . 9 . 15 . 4 . . . . 2 . . . . 3 . . . . . . . 1 . . Builder 11 | . . 5 . 2 . 1 . . . . 2 . . . . 1 . . . . . . . . . . Tunneler 6 | 1 . 4 . . . . . . . . 1 . . . . . . . . . . . . . . . Hauler 6 | . . . . 3 . . . . . . 1 . . . . 2 . . . . . . . . . . Recycler 15 | . . 3 . 5 . 1 . . . . 2 . . . . . . . . . . . . . . 4 Mechanic 1 | . . . . 1 . . . . . . . . . . . . . . . . . . . . . . Operator 3 | . . . . . . 1 . . . . 2 . . . . . . . . . . . . . . . Drone 1 | . . . . . . . . . . . . . . . 1 . . . . . . . . . . . Watcher 7 | . . . . 2 . . . . . . 1 . . . . 2 . . . . 2 . . . . . Swarmer 4 | . . 2 . . 2 . . . . . . . . . . . . . . . . . . . . . Cutter 2 | . . . . . . . . . . . . . . . . . . . . . . . . . 2 . Grunt 18 | . . . 1 13 . 4 . . . . . . . . . . . . . . . . . . . . Duelist 3 | . . . . 2 . 1 . . . . . . . . . . . . . . . . . . . . Sentry 4 | . . . 1 3 . . . . . . . . . . . . . . . . . . . . . . Hunter 2 | . . . . . 2 . . . . . . . . . . . . . . . . . . . . . Programmer 6 | . . . . . . 3 . . . . 2 . 1 . . . . . . . . . . . . . Heavy 1 | . . . . . . 1 . . . . . . . . . . . . . . . . . . . . Subdweller 1 | . . . 1 . . . . . . . . . . . . . . . . . . . . . . . Decomposer 3 | . . . . . . . 2 . . . . . . . . . 1 . . . . . . . . . Packrat 4 | . . . . . . . . . . . . 1 . . . . 3 . . . . . . . . . Samaritan 3 | . . . . . . . 2 . . . . 1 . . . . . . . . . . . . . . Butcher 1 | . . . . . . . . . . . . . . . . . . . . . . . . . . 1 Fireman 1 | . . . . . . . . . . . . . . . . . . . . . . . . . . 1 Best Kill Streak 8 | 1 . 3 1 7 2 8 . . . . 4 . 1 . 1 4 . . . . 2 . . 1 2 3 Combat Bots Only 6 | . . 1 1 6 2 6 . . . . 2 . 1 . 1 . . . . . . . . . 2 . Max Kills in Single Turn 3 | 1 . 1 1 1 1 3 1 . . . 1 1 1 . 1 1 1 . . . 1 . . 1 1 2 Gunslinging . | . . . . . . . . . . . . . . . . . . . . . . . . . . . Exploded 1 | . . . . . . 1 . . . . 1 . 1 . 1 . . . . . . . . . . . Melee 1 | . . 1 1 1 1 1 . . . . . . . . . . . . . . . . . . 1 . Uniques/NPCs Destroyed . | . . . . . . . . . . . . . . . . . . . . . . . . . . . Combat | -11 -10 -10 -10 -8 -7 -6 -6 -6 -6 -5 -5 -5 -5 -5 -4 -4 -4 -4 -4 -3 -3 -3 -2 -2 -1 -1 -------- Run | Yrd Mat Min Sub Mat Fac Fac Low Low Dat Pro Fac Upp Upp Zhi Pro Fac Upp Upp War Pro Res Tes Res Qua Acc Com Hostile Shots Fired 380 | . . 6 33 52 31 103 . . . . 10 . 11 . . . . . . 6 . 12 . 2 105 9 Missed 144 | . . 1 14 14 11 29 . . . . 4 . 7 . . . . . . 3 . 4 . 1 52 4 Damage Taken 5551 | . . 40 494 680 270 1971 . . . . 117 . 91 . . 49 . . . 59 . 190 . 36 1416 138 Core 1101 | . . 6 129 32 . 230 . . . . 35 . 18 . . . . . . 34 . 72 . 36 509 . Absorbed by Shields . | . . . . . . . . . . . . . . . . . . . . . . . . . . . Redirected to Shielding 166 | . . . . . . . . . . . . . . . . . . . . . . . . . 166 . Regen/Repaired (Parts) 403 | . . . . 38 . 186 . . . . 149 . . . . . . . 30 . . . . . . . Core Remaining (%) 84 | 100 . . 46 94 100 . . . . 72 . . . . 88 . . . . 97 . 94 . 88 . 68 Volleys Fired 61 | 5 . 5 . . . 15 . . . . 7 4 4 . 2 5 . . . . 4 2 . . . 8 Largest 2 | 2 . 2 . . . 1 . . . . 1 1 1 . 1 1 . . . . 1 1 . . . 1 Hottest 100 | 100 . 100 . . . 39 . . . . 39 39 39 . 39 39 . . . . 39 39 . . . 60 Shots Fired 71 | 10 . 10 . . . 15 . . . . 7 4 4 . 2 5 . . . . 4 2 . . . 8 Gun 20 | 10 . 10 . . . . . . . . . . . . . . . . . . . . . . . . Cannon . | . . . . . . . . . . . . . . . . . . . . . . . . . . . Launcher 51 | . . . . . . 15 . . . . 7 4 4 . 2 5 . . . . 4 2 . . . 8 Special . | . . . . . . . . . . . . . . . . . . . . . . . . . . . Kinetic . | . . . . . . . . . . . . . . . . . . . . . . . . . . . Thermal 20 | 10 . 10 . . . . . . . . . . . . . . . . . . . . . . . . Explosive 43 | . . . . . . 15 . . . . 7 4 4 . 2 5 . . . . 4 2 . . . . Electromagnetic 8 | . . . . . . . . . . . . . . . . . . . . . . . . . . 8 Robot Hit Streak 12 | 4 . 2 . . . 5 . . . . 11 . 12 . . . . . . . . 2 . . . . Robot Miss Streak 4 | 4 . 1 . . . 2 . . . . . . 2 . 2 . . . . . . . . . . . Penetration Max . | . . . . . . . . . . . . . . . . . . . . . . . . . . . Secondary Targets . | . . . . . . . . . . . . . . . . . . . . . . . . . . . Shots Hit Robots 266 | 5 . 34 12 77 8 45 7 . . . 33 2 2 . . 15 5 . . . 6 3 . 4 4 4 Core Hits 146 | 1 . 17 3 40 4 30 2 . . . 15 2 2 . . 9 3 . . . 2 2 . 1 2 11 Critical Kills . | . . . . . . . . . . . . . . . . . . . . . . . . . . . Critical Parts Destroyed . | . . . . . . . . . . . . . . . . . . . . . . . . . . . Critical Strikes 21 | 1 . . 2 6 . 4 . . . . 4 . . . . 2 1 . . . . . . . 1 . Burn 1 | 1 . . . . . . . . . . . . . . . . . . . . . . . . . . Sever 13 | . . . 2 6 . 4 . . . . . . . . . . . . . . . . . . 1 . Impale 7 | . . . . . . . . . . . 4 . . . . 2 1 . . . . . . . . . Melee Attacks 507 | . . 39 73 105 17 54 7 1 . 1 60 5 1 . 3 36 5 1 3 2 12 18 2 31 23 8 Impact . | . . . . . . . . . . . . . . . . . . . . . . . . . . . Slashing 386 | . . 39 73 105 17 54 . . . . . . . . . . . . 2 2 12 18 2 31 23 8 Piercing 121 | . . . . . . . 7 1 . 1 60 5 1 . 3 36 5 1 1 . . . . . . . Sneak Attacks 106 | . . 26 . 34 . 8 7 . . . 7 2 . . . 10 4 . . . 2 1 . 2 . 3 Combat Hostiles 5 | . . . . 5 . . . . . . . . . . . . . . . . . . . . . . Follow-up Attacks 7 | . . . . 1 2 4 . . . . . . . . . . . . . . . . . . . . Damage Inflicted 14884 | 63 . 2021 424 3829 278 2700 515 . . . 1662 140 116 . 59 928 292 . . . 436 240 . 261 174 746 Guns 125 | 63 . 62 . . . . . . . . . . . . . . . . . . . . . . . . Cannons . | . . . . . . . . . . . . . . . . . . . . . . . . . . . Explosions 1942 | . . . . . . 897 . . . . 307 . 116 . 59 . . . . . . 119 . . . 444 Melee 12816 | . . 1959 424 3829 278 1803 514 . . . 1355 140 . . . 928 292 . . . 436 121 . 261 174 302 Ramming 1 | . . . . . . . 1 . . . . . . . . . . . . . . . . . . . Kinetic . | . . . . . . . . . . . . . . . . . . . . . . . . . . . Thermal 306 | 63 . 62 . . . . . . . . . . . . . . . . . . . . . . . 181 Explosive 1498 | . . . . . . 897 . . . . 307 . 116 . 59 . . . . . . 119 . . . . Electromagnetic 263 | . . . . . . . . . . . . . . . . . . . . . . . . . . 263 Impact . | . . . . . . . . . . . . . . . . . . . . . . . . . . . Slashing 9587 | . . 1959 424 3829 278 1803 . . . . . . . . . . . . . . 436 121 . 261 174 302 Piercing 3229 | . . . . . . . 514 . . . 1355 140 . . . 928 292 . . . . . . . . . Highest Corruption 7 | . . . . . . 5 5 5 5 5 2 2 3 3 3 . . . . . . 7 . . 1 1 Average Corruption 2 | . . . . . . 2 5 5 5 5 1 2 2 3 3 . . . . . . 6 . . 1 1 Corruption Purged . | . . . . . . . . . . . . . . . . . . . . . . . . . . . Corruption Blocked 31 | . . . . . . . . . . . . . . . . . . . 16 . . . 15 . . . Effects 55 | . . . . . . 19 4 7 . 7 2 4 . . 2 . . . . . . 6 . . . 4 Message Errors 15 | . . . . . . 3 2 . . 5 1 2 . . . . . . . . . 1 . . . 1 Matter Fused 7 | . . . . . . 4 1 1 . . . . . . . . . . . . . . . . . 1 Heat Flow Errors 11 | . . . . . . 5 . 1 . 1 1 . . . 2 . . . . . . . . . . 1 Energy Discharges 15 | . . . . . . 5 . 3 . 1 . 1 . . . . . . . . . 4 . . . 1 Data Loss (minor) 3 | . . . . . . 2 . . . . . 1 . . . . . . . . . . . . . . Data Loss (major) 3 | . . . . . . . 1 1 . . . . . . . . . . . . . 1 . . . . Alerts 1 | . . . . . . . . 1 . . . . . . . . . . . . . . . . . . Overload Shots . | . . . . . . . . . . . . . . . . . . . . . . . . . . . Overflow Damage 1996 | . . 517 . 485 . 194 194 . . . 176 . . . 13 106 156 . . . 70 . . 31 . 54 Projectiles . | . . . . . . . . . . . . . . . . . . . . . . . . . . . Explosions 41 | . . . . . . . . . . . 10 . . . 13 . . . . . . . . . . 18 Melee 1955 | . . 517 . 485 . 194 194 . . . 166 . . . . 106 156 . . . 70 . . 31 . 36 Knockbacks . | . . . . . . . . . . . . . . . . . . . . . . . . . . . Impact . | . . . . . . . . . . . . . . . . . . . . . . . . . . . Kinetic . | . . . . . . . . . . . . . . . . . . . . . . . . . . . Secondary . | . . . . . . . . . . . . . . . . . . . . . . . . . . . Self-Inflicted Damage 140 | . . . . . . 140 . . . . . . . . . . . . . . . . . . . . Shots 5 | . . . . . . 5 . . . . . . . . . . . . . . . . . . . . Rammed 2 | . . . . . . 1 1 . . . . . . . . . . . . . . . . . . . Targets Rammed 2 | . . . . . . 1 1 . . . . . . . . . . . . . . . . . . . Kicked . | . . . . . . . . . . . . . . . . . . . . . . . . . . . Crushed . | . . . . . . . . . . . . . . . . . . . . . . . . . . . Highest Temperature 301 | 156 . 78 . 14 . 220 . . . 293 301 256 174 50 255 4 . . . . . 15 . . 196 247 Average Temperature 86 | 67 . 36 . 7 . 89 . . . 120 106 65 75 15 36 4 . . . . . 11 . . 73 63 Received Heat Transfer 864 | . . . 114 306 . 393 . . . . 12 . 12 . . . . . . 9 . . . . 18 . Effects 11 | . . . . . . . . . . 3 5 3 . . . . . . . . . . . . . . Energy Bleed 7 | . . . . . . . . . . 2 5 . . . . . . . . . . . . . . . Interference 4 | . . . . . . . . . . 1 . 3 . . . . . . . . . . . . . . Siege Activations . | . . . . . . . . . . . . . . . . . . . . . . . . . . . Robots Corrupted . | . . . . . . . . . . . . . . . . . . . . . . . . . . . Combat Hostiles . | . . . . . . . . . . . . . . . . . . . . . . . . . . . Parts Fried 2 | . . . . . . . . . . . . . . . . . . . . . . . . . . 2 Impact Corruptions . | . . . . . . . . . . . . . . . . . . . . . . . . . . . Robots Melted . | . . . . . . . . . . . . . . . . . . . . . . . . . . . Combat Hostiles . | . . . . . . . . . . . . . . . . . . . . . . . . . . . Parts Melted . | . . . . . . . . . . . . . . . . . . . . . . . . . . . Heat Transferred 544 | 259 . 185 . . . . . . . . . . . . . . . . . . . . . . . 100 Parts Sabotaged . | . . . . . . . . . . . . . . . . . . . . . . . . . . . Parts Stolen . | . . . . . . . . . . . . . . . . . . . . . . . . . . . Parts Stripped . | . . . . . . . . . . . . . . . . . . . . . . . . . . . Power Chain Reactions 2 | . . . . . . . . . . . . . . . . . . . . . . . . . . 2 Alert | -11 -10 -10 -10 -8 -7 -6 -6 -6 -6 -5 -5 -5 -5 -5 -4 -4 -4 -4 -4 -3 -3 -3 -2 -2 -1 -1 ------- Run | Yrd Mat Min Sub Mat Fac Fac Low Low Dat Pro Fac Upp Upp Zhi Pro Fac Upp Upp War Pro Res Tes Res Qua Acc Com Peak Influence 816 | 5 48 89 . 406 206 297 . . . . 279 . . . . 296 . . . . 204 291 123 210 816 611 Initial 521 | . 3 18 . . 102 100 . . . . . . . . . 152 . . . . 9 114 117 69 33 521 Average 158 | . 33 29 . 157 125 141 . . . . 80 . . . . 199 . . . . 116 214 122 124 307 525 Maximum Alert Level 3 | . . . . 2 1 1 . . . . 1 . . . . 1 . . . . 1 1 . 1 3 2 Low Security (%) 70 | 100 100 100 . 60 98 78 . . . . 91 . . . . 53 . . . . 98 29 100 95 48 . Level 1 20 | . . . . 37 1 21 . . . . 8 . . . . 46 . . . . 1 70 . 4 19 . Level 2 8 | . . . . 2 . . . . . . . . . . . . . . . . . . . . 19 100 Level 3 . | . . . . . . . . . . . . . . . . . . . . . . . . . 12 . Level 4 . | . . . . . . . . . . . . . . . . . . . . . . . . . . . Level 5 . | . . . . . . . . . . . . . . . . . . . . . . . . . . . High Security . | . . . . . . . . . . . . . . . . . . . . . . . . . . . Max Security . | . . . . . . . . . . . . . . . . . . . . . . . . . . . Squads Dispatched 41 | . 1 . . 5 3 8 . . . . 3 . . . . 3 . . . . 2 4 2 2 4 4 Investigation 7 | . . . . 1 1 2 . . . . . . . . . . . . . . . 1 . . 1 1 Extermination 8 | . . . . . . 3 . . . . 1 . . . . 1 . . . . . 1 . 1 . 1 Reinforcement 20 | . 1 . . 3 . 2 . . . . 1 . . . . 2 . . . . 2 1 2 1 3 2 Assault 2 | . . . . . . 1 . . . . . . . . . . . . . . . 1 . . . . Garrison 4 | . . . . 1 2 . . . . . 1 . . . . . . . . . . . . . . . Intercept . | . . . . . . . . . . . . . . . . . . . . . . . . . . . Searches Triggered . | . . . . . . . . . . . . . . . . . . . . . . . . . . . Construction Impeded 2 | . . . . 1 . . . . . . . . . . . . . . . . 1 . . . . . Haulers Reinforced 4 | . . . . . . . . . . . . . . . . 2 . . . . 1 . 1 . . . Active Scanning Responses . | . . . . . . . . . . . . . . . . . . . . . . . . . . . Cargo Convoy Interrupts 1 | . . . . . . 1 . . . . . . . . . . . . . . . . . . . . Stealth | -11 -10 -10 -10 -8 -7 -6 -6 -6 -6 -5 -5 -5 -5 -5 -4 -4 -4 -4 -4 -3 -3 -3 -2 -2 -1 -1 --------- Run | Yrd Mat Min Sub Mat Fac Fac Low Low Dat Pro Fac Upp Upp Zhi Pro Fac Upp Upp War Pro Res Tes Res Qua Acc Com Distress Signals 16 | . . . . 2 . . . . . . 1 . . . . . . . . . . 3 1 . 4 5 Communications Jammed . | . . . . . . . . . . . . . . . . . . . . . . . . . . . Distress Signals . | . . . . . . . . . . . . . . . . . . . . . . . . . . . Times Spotted 209 | . 2 2 14 25 4 15 . . . . 12 . 7 . 2 3 . . 4 1 3 21 . 5 58 31 Peak Tracking Total 21 | . 2 1 3 6 2 6 . . . . 5 . 7 . 1 2 . . 4 1 1 9 . 3 21 8 Tactical Retreats 26 | . 1 . 2 3 . 3 . . . . 1 . . . . 1 . . . 1 . 4 . . 9 1 Traps | -11 -10 -10 -10 -8 -7 -6 -6 -6 -6 -5 -5 -5 -5 -5 -4 -4 -4 -4 -4 -3 -3 -3 -2 -2 -1 -1 ------- Run | Yrd Mat Min Sub Mat Fac Fac Low Low Dat Pro Fac Upp Upp Zhi Pro Fac Upp Upp War Pro Res Tes Res Qua Acc Com Traps Triggered 44 | . . . 4 1 . . . . . . . . . . . 1 . . . . . 1 . . . 37 Indirectly 36 | . . . . . . . . . . . . . . . . . . . . . . . . . . 36 Trap Hack Attempts . | . . . . . . . . . . . . . . . . . . . . . . . . . . . Triggered . | . . . . . . . . . . . . . . . . . . . . . . . . . . . Disarmed . | . . . . . . . . . . . . . . . . . . . . . . . . . . . Reprogrammed 6 | . . . . . . . . . . . . . . . . . . . . . . . . 6 . . Reused . | . . . . . . . . . . . . . . . . . . . . . . . . . . . Traps Extracted . | . . . . . . . . . . . . . . . . . . . . . . . . . . . Installed . | . . . . . . . . . . . . . . . . . . . . . . . . . . . Triggered 17 | . . . . . . 1 . . . . . . 1 . . . . . 15 . . . . . . . Objects Rigged 1 | . . . . . . . . . . . . . . . . . . . . . . 1 . . . . Machines | -11 -10 -10 -10 -8 -7 -6 -6 -6 -6 -5 -5 -5 -5 -5 -4 -4 -4 -4 -4 -3 -3 -3 -2 -2 -1 -1 ---------- Run | Yrd Mat Min Sub Mat Fac Fac Low Low Dat Pro Fac Upp Upp Zhi Pro Fac Upp Upp War Pro Res Tes Res Qua Acc Com Machines Disabled 11 | . . 1 1 . . 2 . . . . . . . . . . . . . . . 4 . 3 . . Max in Single Turn 2 | . . 1 1 . . 2 . . . . . . . . . . . . . . . 1 . 1 . . Garrison Access 5 | . . . . . . 2 . . . . . . . . . 1 . . . . . 1 . . 1 . Machines Repaired . | . . . . . . . . . . . . . . . . . . . . . . . . . . . Machines Dismantled . | . . . . . . . . . . . . . . . . . . . . . . . . . . . Machines Sabotaged . | . . . . . . . . . . . . . . . . . . . . . . . . . . . Overloaded Fab Kills . | . . . . . . . . . . . . . . . . . . . . . . . . . . . Hacking | -11 -10 -10 -10 -8 -7 -6 -6 -6 -6 -5 -5 -5 -5 -5 -4 -4 -4 -4 -4 -3 -3 -3 -2 -2 -1 -1 --------- Run | Yrd Mat Min Sub Mat Fac Fac Low Low Dat Pro Fac Upp Upp Zhi Pro Fac Upp Upp War Pro Res Tes Res Qua Acc Com Machines Accessed 94 | . . 1 2 12 1 7 1 . 4 . 12 . . 8 . 4 2 2 6 . 8 5 1 8 5 5 Terminals 45 | . . . . 9 . 4 . . . . 5 . . . . 3 1 . . . 3 4 1 8 3 4 Fabricators 4 | . . . . . 1 1 . . . . 1 . . . . . . . . . . . . . 1 . Repair Stations 5 | . . . . 1 . 1 . . . . 2 . . . . . . . . . 1 . . . . . Recycling Units 3 | . . . . . . . . . . . 1 . . . . . . . . . 1 . . . . 1 Scanalyzers 7 | . . . . 2 . . . . . . 2 . . . . . . . . . 3 . . . . . Garrison Access 5 | . . . . . . 1 . . . . 1 . . . . 1 . . . . . 1 . . 1 . Total Hacks 338 | . . 1 6 48 3 22 1 . 31 . 35 . . 38 . 14 2 2 13 . 23 30 10 38 11 10 Successful 261 | . . 1 6 28 2 9 1 . 31 . 24 . . 38 . 7 2 2 13 . 20 25 7 32 7 6 Failed 76 | . . . . 19 1 13 . . . . 11 . . . . 7 . . . . 3 5 3 6 4 4 Catastrophic 12 | . . . . 7 . 1 . . . . 1 . . . . 1 . . . . . 1 . . . 1 Database Lockouts 1 | . . . . 1 . . . . . . . . . . . . . . . . . . . . . . Manual 152 | . . . . 31 . 15 . . . . 19 . . . . 11 . . 1 . 9 17 9 26 7 7 Terminals 186 | . . . . 34 . 12 . . . . 20 . . . . 13 1 . . . 13 29 10 38 7 9 Fabricators 11 | . . . . . 3 4 . . . . 2 . . . . . . . . . . . . . 2 . Repair Stations 11 | . . . . 2 . 3 . . . . 5 . . . . . . . . . 1 . . . . . Recycling Units 3 | . . . . . . . . . . . 1 . . . . . . . . . 1 . . . . 1 Scanalyzers 26 | . . . . 12 . . . . . . 6 . . . . . . . . . 8 . . . . . Garrison Access 8 | . . . . . . 3 . . . . 1 . . . . 1 . . . . . 1 . . 2 . Terminal Hacks 177 | . . 1 6 8 . 2 1 . 31 . 5 . . 38 . 4 2 2 13 . 6 19 6 27 2 4 Record 60 | . . . 5 2 . . . . 11 . 1 . . 27 . 1 1 . 7 . 1 . . 4 . . Part Schematic 22 | . . . . 1 . . . . 12 . 1 . . 3 . 1 . . . . . . 1 3 . . Robot Schematic 5 | . . . . . . . . . 5 . . . . . . . . . . . . . . . . . Robot Analysis 5 | . . . . . . . . . . . . . . 4 . . . . . . . 1 . . . . Prototype ID Bank 13 | . . . . . . . . . 3 . . . . 4 . . . . 4 . . 2 . . . . Open Door 7 | . . 1 . . . . 1 . . . . . . . . . 1 2 2 . . . . . . . Level Access Points 4 | . . . . . . . . . . . . . . . . . . . . . . 1 . 1 1 1 Branch Access Points 11 | . . . . 1 . 1 . . . . 1 . . . . 1 . . . . 1 1 1 2 1 1 Machine Index 3 | . . . . . . . . . . . . . . . . . . . . . 1 1 . 1 . . Terminal Index 4 | . . . . 1 . . . . . . 1 . . . . . . . . . 1 . 1 . . . Fabricator Index 1 | . . . . . . . . . . . . . . . . . . . . . . . 1 . . . Garrison Index 1 | . . . . . . . . . . . . . . . . . . . . . . . 1 . . . Alert Level 5 | . . . . 1 . 1 . . . . . . . . . . . . . . 1 1 . 1 . . Unreport Threat 1 | . . . . 1 . . . . . . . . . . . . . . . . . . . . . . Locate Traps 2 | . . . . . . . . . . . . . . . . . . . . . . 1 . 1 . . Reprogram Traps 1 | . . . . . . . . . . . . . . . . . . . . . . . . 1 . . Dispatch Records 1 | . . . . . . . . . . . . . . . . . . . . . . 1 . . . . Security Status 3 | . . . . 1 . . . . . . 1 . . . . . . . . . . . . 1 . . Surveillance Status 2 | . . . . . . . . . . . . . . . . . . . . . . 1 . 1 . . Patrol Status 1 | . . . . . . . . . . . . . . . . . . . . . . 1 . . . . Assault Status 3 | . . . . . . . . . . . . . . . . . . . . . . 1 . 2 . . Recall Extermination 2 | . . . . . . . . . . . . . . . . . . . . . . 1 . 1 . . Recall Reinforcements 2 | . . . . . . . . . . . . . . . . 1 . . . . . . . 1 . . Recall Assault 1 | . . . . . . . . . . . . . . . . . . . . . . 1 . . . . Registered Prototypes 1 | . . . . . . . . . . . . . . . . . . . . . . 1 . . . . Zone Layout 11 | . . . . . . . . . . . . . . . . . . . . . 1 2 1 7 . . Derelict Proto ID Bank 1 | . . . 1 . . . . . . . . . . . . . . . . . . . . . . . Protovariant Controls 2 | . . . . . . . . . . . . . . . . . . . . . . 2 . . . . Disengage Seal 2 | . . . . . . . . . . . . . . . . . . . . . . . . . . 2 Fabricator Hacks 8 | . . . . . 2 2 . . . . 2 . . . . . . . . . . . . . 2 . Network Status 1 | . . . . . . . . . . . 1 . . . . . . . . . . . . . . . Load Schematic 4 | . . . . . 1 1 . . . . 1 . . . . . . . . . . . . . 1 . Build 3 | . . . . . 1 1 . . . . . . . . . . . . . . . . . . 1 . Repair Station Hacks 8 | . . . . 2 . 2 . . . . 4 . . . . . . . . . . . . . . . Scan Component 4 | . . . . 1 . 1 . . . . 2 . . . . . . . . . . . . . . . Repair 4 | . . . . 1 . 1 . . . . 2 . . . . . . . . . . . . . . . Recycling Unit Hacks 3 | . . . . . . . . . . . 1 . . . . . . . . . 1 . . . . 1 Report Inventory 2 | . . . . . . . . . . . . . . . . . . . . . 1 . . . . 1 Retrieve Components 1 | . . . . . . . . . . . 1 . . . . . . . . . . . . . . . Scanalyzer 25 | . . . . 11 . . . . . . 6 . . . . . . . . . 8 . . . . . Insert Component 13 | . . . . 6 . . . . . . 3 . . . . . . . . . 4 . . . . . Analyze 12 | . . . . 5 . . . . . . 3 . . . . . . . . . 4 . . . . . Garrison Access Hacks 3 | . . . . . . . . . . . . . . . . 1 . . . . . 1 . . 1 . Seal Access 3 | . . . . . . . . . . . . . . . . 1 . . . . . 1 . . 1 . Unauthorized Hacks 37 | . . . . 7 . 3 . . . . 6 . . . . 2 . . . . 5 5 1 5 2 1 Terminals 35 | . . . . 7 . 2 . . . . 6 . . . . 2 . . . . 4 5 1 5 2 1 Assimilate 5 | . . . . . . . . . . . 2 . . . . . . . . . 1 2 . . . . Botnet 29 | . . . . 7 . 2 . . . . 4 . . . . 2 . . . . 3 2 1 5 2 1 Detonate 1 | . . . . . . . . . . . . . . . . . . . . . . 1 . . . . Fabricators . | . . . . . . . . . . . . . . . . . . . . . . . . . . . Repair Stations 1 | . . . . . . . . . . . . . . . . . . . . . 1 . . . . . Mechanics 1 | . . . . . . . . . . . . . . . . . . . . . 1 . . . . . Recycling Units . | . . . . . . . . . . . . . . . . . . . . . . . . . . . Scanalyzers . | . . . . . . . . . . . . . . . . . . . . . . . . . . . Garrison Access 1 | . . . . . . 1 . . . . . . . . . . . . . . . . . . . . Jam 1 | . . . . . . 1 . . . . . . . . . . . . . . . . . . . . Data Cores Recovered 2 | . . . . . . . . . . . 2 . . . . . . . . . . . . . . . Used . | . . . . . . . . . . . . . . . . . . . . . . . . . . . Hacking Detections 55 | . . . . 11 1 5 . . . . 9 . . . . 3 . . . . 8 4 1 5 4 4 Full Trace Events 5 | . . . . 1 1 1 . . . . . . . . . . . . . . . 1 . . 1 . Feedback Events . | . . . . . . . . . . . . . . . . . . . . . . . . . . . Feedback Blocked . | . . . . . . . . . . . . . . . . . . . . . . . . . . . Robot Schematics Acquired 5 | . . . . . . . . . 5 . . . . . . . . . . . . . . . . . Robots Built . | . . . . . . . . . . . . . . . . . . . . . . . . . . . Authchips . | . . . . . . . . . . . . . . . . . . . . . . . . . . . Time . | . . . . . . . . . . . . . . . . . . . . . . . . . . . Total Robot Build Rating . | . . . . . . . . . . . . . . . . . . . . . . . . . . . Part Schematics Acquired 30 | . . . . 6 . . . . 12 . 3 . . 3 . 1 . . . . 3 . 1 1 . . Parts Built 2 | . . . . . . 1 . . . . . . . . . . . . . . . . . . 1 . Authchips . | . . . . . . . . . . . . . . . . . . . . . . . . . . . Time 155 | . . . . . 73 36 . . . . . . . . . . . . . . . . . . 46 . Total Part Build Rating 12 | . . . . . . 3 . . . . . . . . . . . . . . . . . . 9 . Parts Repaired 4 | . . . . 1 . 1 . . . . 2 . . . . . . . . . . . . . . . Time 148 | . . . . 44 . 38 . . . . 66 . . . . . . . . . . . . . . . Parts Recycled . | . . . . . . . . . . . . . . . . . . . . . . . . . . . Recycled Matter . | . . . . . . . . . . . . . . . . . . . . . . . . . . . Retrieved Matter . | . . . . . . . . . . . . . . . . . . . . . . . . . . . Retrieved Components 9 | . . . . . . . . . . . 9 . . . . . . . . . . . . . . . Parts Scanalyzed 11 | . . . . 6 . . . . . . 2 . . . . . . . . . 3 . . . . . Part Schematics Acquired 10 | . . . . 5 . . . . . . 2 . . . . . . . . . 3 . . . . . Parts Damaged . | . . . . . . . . . . . . . . . . . . . . . . . . . . . Bothacking | -11 -10 -10 -10 -8 -7 -6 -6 -6 -6 -5 -5 -5 -5 -5 -4 -4 -4 -4 -4 -3 -3 -3 -2 -2 -1 -1 ------------ Run | Yrd Mat Min Sub Mat Fac Fac Low Low Dat Pro Fac Upp Upp Zhi Pro Fac Upp Upp War Pro Res Tes Res Qua Acc Com Used RIF Installer . | . . . . . . . . . . . . . . . . . . . . . . . . . . . Robots Hacked . | . . . . . . . . . . . . . . . . . . . . . . . . . . . Non-combat . | . . . . . . . . . . . . . . . . . . . . . . . . . . . Combat . | . . . . . . . . . . . . . . . . . . . . . . . . . . . Robot Hacks Applied . | . . . . . . . . . . . . . . . . . . . . . . . . . . . Relay Couplers Released 1 | . . . . . . 1 . . . . . . . . . . . . . . . . . . . . Machine Destruction 1 | . . . . . . 1 . . . . . . . . . . . . . . . . . . . . Fabnet Peak Effective % . | . . . . . . . . . . . . . . . . . . . . . . . . . . . Robots Rewired . | . . . . . . . . . . . . . . . . . . . . . . . . . . . Allies Hacked . | . . . . . . . . . . . . . . . . . . . . . . . . . . . Hacks Repelled . | . . . . . . . . . . . . . . . . . . . . . . . . . . . Allies | -11 -10 -10 -10 -8 -7 -6 -6 -6 -6 -5 -5 -5 -5 -5 -4 -4 -4 -4 -4 -3 -3 -3 -2 -2 -1 -1 -------- Run | Yrd Mat Min Sub Mat Fac Fac Low Low Dat Pro Fac Upp Upp Zhi Pro Fac Upp Upp War Pro Res Tes Res Qua Acc Com Total Allies 7 | . . . 5 . . . . . . . 1 . . . . . . . . . 1 . . . . . Largest Group 2 | . . . 2 2 . . . . . . 1 . . . . . . . . . 1 . . . . . Highest-Rated Group 45 | . . . 38 38 . . . . . . 26 . . . . . . . . . 45 . . . . . Highest-Rated Ally 45 | . . . 19 19 . . . . . . 26 . . . . . . . . . 45 . . . . . Total Orders 4 | . . . . . . . . . . . 3 . . . . . . . . . 1 . . . . . STAY 3 | . . . . . . . . . . . 2 . . . . . . . . . 1 . . . . . FOLLOW 1 | . . . . . . . . . . . 1 . . . . . . . . . . . . . . . Ally Attacks 42 | . . . 35 7 . . . . . . . . . . . . . . . . . . . . . . Total Damage 688 | . . . 548 140 . . . . . . . . . . . . . . . . . . . . . . Kills 8 | . . . 7 1 . . . . . . . . . . . . . . . . . . . . . . Allies Corrupted . | . . . . . . . . . . . . . . . . . . . . . . . . . . . Allies Melted 2 | . . . . . . 1 . . . . . . . . . . . . 1 . . . . . . . Intel | -11 -10 -10 -10 -8 -7 -6 -6 -6 -6 -5 -5 -5 -5 -5 -4 -4 -4 -4 -4 -3 -3 -3 -2 -2 -1 -1 ------- Run | Yrd Mat Min Sub Mat Fac Fac Low Low Dat Pro Fac Upp Upp Zhi Pro Fac Upp Upp War Pro Res Tes Res Qua Acc Com Robot Analysis Total 5 | . . . . . . . . . . . . . . 4 . . . . . . . 1 . . . . Derelict Logs Recovered 13 | . . . 3 . . . . 1 . 1 . 1 3 . 1 . . 3 . . . . . . . . Drone Launches 1 | . . . . . . . . . . . . . . . . . . . . . . . . . 1 . Drone Recoveries . | . . . . . . . . . . . . . . . . . . . . . . . . . . . Decoded 0b10 Intel 83 | . . . . . . . . . . . . . . . . 10 . . . . 8 14 5 16 13 17 Traps 11 | . . . . . . . . . . . . . . . . 1 . . . . . 1 . 5 . 4 Emergency Access 3 | . . . . . . . . . . . . . . . . . . . . . . . . . 2 1 Items 55 | . . . . . . . . . . . . . . . . 7 . . . . 6 11 4 11 6 10 Machines 3 | . . . . . . . . . . . . . . . . . . . . . . 2 . . 1 . Patrols 8 | . . . . . . . . . . . . . . . . 1 . . . . 2 . . . 4 1 Guards 3 | . . . . . . . . . . . . . . . . 1 . . . . . . 1 . . 1 Exploration | -11 -10 -10 -10 -8 -7 -6 -6 -6 -6 -5 -5 -5 -5 -5 -4 -4 -4 -4 -4 -3 -3 -3 -2 -2 -1 -1 ------------- Run | Yrd Mat Min Sub Mat Fac Fac Low Low Dat Pro Fac Upp Upp Zhi Pro Fac Upp Upp War Pro Res Tes Res Qua Acc Com Turns Passed 20234 | 148 107 1275 7570 2494 326 1763 268 205 18 262 806 280 182 66 142 409 244 67 1038 109 260 490 172 487 393 653 Spaces Moved 18064 | 77 60 564 2670 671 49 593 354 498 77 781 1743 569 524 197 547 819 603 257 1799 321 502 988 34 722 1009 1036 Core 77 | 7 . . . . . 62 8 . . . . . . . . . . . . . . . . . . . Treads 4555 | 70 60 564 2670 671 49 471 . . . . . . . . . . . . . . . . . . . . Legs . | . . . . . . . . . . . . . . . . . . . . . . . . . . . Wheels . | . . . . . . . . . . . . . . . . . . . . . . . . . . . Hover . | . . . . . . . . . . . . . . . . . . . . . . . . . . . Flight 13432 | . . . . . . 60 346 498 77 781 1743 569 524 197 547 819 603 257 1799 321 502 988 34 722 1009 1036 Fastest Speed 14 | 50 160 160 160 156 156 95 23 23 23 20 20 20 20 20 20 20 23 23 23 23 23 17 23 17 14 27 Average Speed 59 | 150 160 160 160 158 156 191 33 23 23 20 20 20 20 20 20 22 23 23 23 24 23 22 23 22 19 30 Slowest Speed 550 | 160 160 160 160 240 156 550 500 23 23 23 20 20 20 20 20 26 23 23 23 96 24 23 23 23 87 117 Overloaded Moves 283 | . . . . . . . . . . . . . . . . . . . . . . 8 . 14 261 . Propulsion Burnouts . | . . . . . . . . . . . . . . . . . . . . . . . . . . . Robots Hopped 33 | . . . . . . . . . . . 3 1 . . . 4 . . 3 . . 1 . 4 16 1 Cave-ins Triggered . | . . . . . . . . . . . . . . . . . . . . . . . . . . . Teleports 2 | . . . . . . . . . . . . . . 1 . . . . . . . . . 1 . . Exploration Rate (%) 50 | 6 18 68 96 57 1 19 46 55 68 85 34 69 77 62 74 23 73 51 98 59 21 81 1 59 32 25 Regions Visited 26 Branch Regions 17 Pre-discovered Areas 8 | . . . 1 . . . . . 1 . . . 2 3 . . . 1 . . . . . . . . Known Exits Taken 21 | . . . . . 1 1 1 1 1 1 1 1 1 1 1 1 1 1 1 1 1 1 1 1 1 . Unknown Exits Taken 5 | 1 1 1 1 1 . . . . . . . . . . . . . . . . . . . . . . Scrap Searched 33 | . . . 17 . . . 1 1 . 1 . 1 5 . 1 . 2 2 . 2 . . . . . . Spaces Dug 358 | . . 7 20 14 1 10 . 1 . 1 27 56 . . 3 93 . 1 3 2 68 11 2 21 14 3 Terrain Destroyed 548 | . . 7 20 14 1 53 . 1 . 1 69 75 43 . 28 93 . 1 3 2 68 20 2 21 14 12 Melee 160 | . . 7 20 14 1 10 . 1 . 1 27 2 . . 3 12 . 1 3 2 5 11 2 21 14 3 Projectile . | . . . . . . . . . . . . . . . . . . . . . . . . . . . AOE 388 | . . . . . . 43 . . . . 42 73 43 . 25 81 . . . . 63 9 . . . 9 Terrain Rammed . | . . . . . . . . . . . . . . . . . . . . . . . . . . . Walls Destroyed . | . . . . . . . . . . . . . . . . . . . . . . . . . . . Machines Disabled . | . . . . . . . . . . . . . . . . . . . . . . . . . . . Actions | -11 -10 -10 -10 -8 -7 -6 -6 -6 -6 -5 -5 -5 -5 -5 -4 -4 -4 -4 -4 -3 -3 -3 -2 -2 -1 -1 --------- Run | Yrd Mat Min Sub Mat Fac Fac Low Low Dat Pro Fac Upp Upp Zhi Pro Fac Upp Upp War Pro Res Tes Res Qua Acc Com Total 26807 | 96 71 890 5882 1989 285 1143 489 586 76 882 2094 720 595 220 572 974 699 263 2414 348 621 1218 194 992 1145 1349 Wait 7748 | 4 11 265 3092 1134 211 437 116 86 . 95 262 142 62 5 21 95 92 4 610 23 84 179 158 236 119 205 Move 17974 | 76 59 563 2669 670 48 592 353 497 76 780 1736 566 523 196 546 810 602 256 1793 320 501 985 33 714 978 1032 Hop 29 | . . . . . . . . . . . 3 1 . . . 4 . . 2 . . 1 . 3 14 1 Pick Up 74 | 3 1 5 4 21 2 16 1 . . 1 8 . 1 1 . 3 . 1 . . 3 . . 1 . 2 Fast Attach 96 | 7 . 1 4 15 1 3 1 1 . 2 1 . 1 8 . 2 . . 3 1 4 15 . 3 6 17 Attach 54 | . . 1 5 6 4 12 7 . . 1 3 . 1 . . 2 . . . 1 4 . 1 1 3 2 Detach 18 | . . 2 4 2 2 1 . . . . 1 . . . . 1 . . . 1 1 1 . 1 . 1 Swap 97 | 1 . 3 23 24 . 12 . . . 1 8 2 . 3 . 14 . . . . 3 3 . . . . Drop 94 | . . 6 8 16 2 9 3 1 . 1 5 . 2 7 . 2 . 1 3 . 5 14 . 2 2 5 Fire 61 | 5 . 5 . . . 15 . . . . 7 4 4 . 2 5 . . . . 4 2 . . . 8 Melee 492 | . . 39 73 101 15 45 7 1 . 1 60 5 1 . 3 36 5 1 3 2 12 18 2 31 23 8 Ram 2 | . . . . . . 1 1 . . . . . . . . . . . . . . . . . . . Kick . | . . . . . . . . . . . . . . . . . . . . . . . . . . . Crush . | . . . . . . . . . . . . . . . . . . . . . . . . . . . Escape Stasis 68 | . . . . . . . . . . . . . . . . . . . . . . . . . . 68 Rewire . | . . . . . . . . . . . . . . . . . . . . . . . . . . . Trap . | . . . . . . . . . . . . . . . . . . . . . . . . . . . Miscellaneous . | . . . . . . . . . . . . . . . . . . . . . . . . . . . Route ------- -11/Scrapyard -10/Materials -10/Mines (discovered 3 exits: [*Mat x2] / *Sub) -10/Subcaves (discovered 3 exits: *Mat x2 / [Rec]) -8/Materials -7/Factory -6/Factory (discovered 2 exits: *Low x2) -6/Lower Caves -6/Lower Caves (discovered 2 exits: *Fac / *Dat) -6/Data Miner -5/Proximity Caves -5/Factory (discovered 3 exits: Fac / *Upp x2) -5/Upper Caves -5/Upper Caves -5/Zhirov -4/Proximity Caves -4/Factory (discovered 5 exits: *Upp x2 / Ext x2 / Arm) -4/Upper Caves -4/Upper Caves -4/Warlord -3/Proximity Caves -3/Research (discovered 3 exits: Res / *Tes x2) -3/Testing -2/Research (discovered 2 exits: *Qua x2) -2/Quarantine -1/Access (discovered 2 exits: Sur / *Com) -1/Command (discovered 2 exits: *Sur x2) To Epsilon Eridani History --------- Turn | Location | Event 10 | -11/Scrapyard | Discovered new exit (range 15) 149 | -11/Scrapyard | Entered Materials 222 | -10/Materials | Discovered new exit (range 16) 256 | -10/Materials | Entered Mines 262 | -10/Mines | Met a Derelict bent on vengeance 302 | -10/Mines | Build established: Mutant 364 | -10/Mines | A weapon hastily lodged in a ceiling crevice suddenly fell to the ground 995 | -10/Mines | Discovered new exit (range 12) 1037 | -10/Mines | Found the Drone Emporium 1450 | -10/Mines | Discovered new exit (range 5) 1511 | -10/Mines | Discovered new exit (range 11) 1531 | -10/Mines | Entered Subcaves 1539 | -10/Subcaves | Learned 2 Materials zone layouts 1637 | -10/Subcaves | Visited Clippyterm 1642 | -10/Subcaves | Learned Factory emergency access door positions 2330 | -10/Subcaves | Discovered new exit (range 12) 2535 | -10/Subcaves | Visited triangular shrine 2548 | -10/Subcaves | Found Prototype Device 2548 | -10/Subcaves | Identified V3-11A's Pendant 2553 | -10/Subcaves | Befriended Subdweller 2959 | -10/Subcaves | Visited 4L-MR0's lab 3000 | -10/Subcaves | Found Meta Core 3069 | -10/Subcaves | Befriended Subdweller 3166 | -10/Subcaves | A swath of the cavern ceiling suddenly collapsed 3640 | -10/Subcaves | Shifting Twisted Machinery released Barrage Gun 3640 | -10/Subcaves | Discovered new exit (range 6) 3658 | -10/Subcaves | Learned Materials emergency access door positions 3684 | -10/Subcaves | Shifting Twisted Machinery released Mak. Flight Unit 3946 | -10/Subcaves | A swath of the cavern ceiling suddenly collapsed 4393 | -10/Subcaves | Shifting Twisted Machinery released Mak. Light Armor Plating 4398 | -10/Subcaves | Shifting Twisted Machinery released Sub. Beam Cannon 4436 | -10/Subcaves | Discovered new exit (range 8) 4961 | -10/Subcaves | Shifting Twisted Machinery released Sub. Laser 5019 | -10/Subcaves | Befriended Subdweller 5024 | -10/Subcaves | Befriended Subdweller 5558 | -10/Subcaves | Disturbed a concealed Subdweller 5703 | -10/Subcaves | Befriended Subdweller 8289 | -10/Subcaves | Learned location of Zion (-7) 8988 | -10/Subcaves | Core integrity fell below 50% 9101 | -10/Subcaves | Entered Materials 9101 | -8/Materials | Accompanied by 2 allies 9101 | -8/Materials | Evolved 4 slots: Propulsion x2, Utility x2 9575 | -8/Materials | Build established: Assassin 9924 | -8/Materials | Garrison activated, responded to threat 10559 | -8/Materials | Repaired Mak. Sword 10995 | -8/Materials | Build established: Scavenger-Assassin 11502 | -8/Materials | Discovered new exit (range 13) 11518 | -8/Materials | Central database locked down 11595 | -8/Materials | Entered Factory 11595 | -7/Factory | Evolved 2 slots: Utility x2 11780 | -7/Factory | Discovered new exit (range 7) 11797 | -7/Factory | Identified exit to Factory 11800 | -7/Factory | Garrison activated, responded to threat 11921 | -7/Factory | Entered another Factory area 11921 | -6/Factory | Evolved 2 slots: Utility x2 11962 | -6/Factory | Attached Meta Core, gained temporary slots: Propulsion, Utility, Weapon 12220 | -6/Factory | Build established: Scavenger-Gladiator 12357 | -6/Factory | Repaired Hvy. Armor Plating 12488 | -6/Factory | Fabricated Hvy. Armor Plating (x1) 12812 | -6/Factory | Cargo convoy interrupted 12963 | -6/Factory | Identified exit to Lower Caves 13100 | -6/Factory | Build established: Gladiator 13286 | -6/Factory | Lost 8 parts (4n3u1w) 13527 | -6/Factory | Build established: Mutant 13684 | -6/Factory | Entered Lower Caves 13920 | -6/Lower Caves | Discovered new exit (range 7) 13921 | -6/Lower Caves | Identified exit to Lower Caves 13932 | -6/Lower Caves | Encountered a Warlord checkpoint 13952 | -6/Lower Caves | Entered another Lower Caves area 13954 | -6/Lower Caves | Discovered new exit (range 15) 13957 | -6/Lower Caves | Identified exit to Factory 14007 | -6/Lower Caves | Build established: Hacker-Sprinter 14018 | -6/Lower Caves | Learned location of 1 exit from Factory 14136 | -6/Lower Caves | Discovered new exit (range 3) 14137 | -6/Lower Caves | Identified exit to Data Miner 14157 | -6/Lower Caves | Entered Data Miner 14157 | -6/Data Miner | Discovered new exit (range 6) 14158 | -6/Data Miner | Identified exit to Proximity Caves 14162 | -6/Data Miner | Met Data Miner 14166 | -6/Data Miner | Learned location of Section 7 (-2) 14166 | -6/Data Miner | Acquired the access code to Warlord's prototype stash 14170 | -6/Data Miner | Received God Mode back door access code from Data Miner 14175 | -6/Data Miner | Entered Proximity Caves 14190 | -5/Proximity Caves | Found Alien Artifact 14190 | -5/Proximity Caves | Identified Core Expander 14190 | -5/Proximity Caves | Installed Core Expander, added new Propulsion slot 14434 | -5/Proximity Caves | Discovered exit to Factory (range 10) 14435 | -5/Proximity Caves | Learned location of 1 exit from Upper Caves 14437 | -5/Proximity Caves | Entered Factory 14437 | -5/Factory | Evolved 2 slots: Power x1, Utility x1 14438 | -5/Factory | Identified exit to Factory 14669 | -5/Factory | Repaired Lyr. Light Armor Plating 14816 | -5/Factory | Repaired Hvy. Rocket Launcher 14980 | -5/Factory | Build established: Hacker-Scout 14984 | -5/Factory | Identified exit to Upper Caves 15178 | -5/Factory | Garrison activated, responded to threat 15243 | -5/Factory | Entered Upper Caves 15244 | -5/Upper Caves | Identified exit to Upper Caves 15523 | -5/Upper Caves | Entered another Upper Caves area 15524 | -5/Upper Caves | Learned Factory stockpile data 15539 | -5/Upper Caves | Learned location of Armory (-4) 15608 | -5/Upper Caves | Learned location of Warlord (-4) 15678 | -5/Upper Caves | Spotted B-75 Beast 15701 | -5/Upper Caves | Discovered new exit (range 13) 15703 | -5/Upper Caves | Identified exit to Zhirov 15705 | -5/Upper Caves | Entered Zhirov 15705 | -5/Zhirov | Discovered new exit (range 3) 15706 | -5/Zhirov | Identified exit to Proximity Caves 15713 | -5/Zhirov | Met Zhirov 15721 | -5/Zhirov | Found Alien Artifact 15721 | -5/Zhirov | Identified Transdimensional Reconstructor 15721 | -5/Zhirov | Warped through subspace 15749 | -5/Zhirov | Found Alien Artifact 15749 | -5/Zhirov | Identified Integrated Reactor 15749 | -5/Zhirov | Installed Integrated Reactor, increased core energy generation (+10) 15757 | -5/Zhirov | Learned location of Quarantine (-2) 15757 | -5/Zhirov | Learned location of Testing (-3) 15757 | -5/Zhirov | Learned location of Command (-1) 15762 | -5/Zhirov | Zhirov requested help retrieving the SGEMP Prototype 15771 | -5/Zhirov | Entered Proximity Caves 15857 | -4/Proximity Caves | Spotter reported a threat 15866 | -4/Proximity Caves | Learned 8 Research zone layouts 15912 | -4/Proximity Caves | Discovered exit to Factory (range 9) 15913 | -4/Proximity Caves | Entered Factory 15913 | -4/Factory | Evolved 2 slots: Utility x2 15914 | -4/Factory | Identified exit to Upper Caves 15921 | -4/Factory | Identified exit to Extension 15921 | -4/Factory | Identified exit to Armory 16150 | -4/Factory | Found Prototype Hackware 16322 | -4/Factory | Entered Upper Caves 16495 | -4/Upper Caves | Encountered a Warlord checkpoint 16547 | -4/Upper Caves | Discovered new exit (range 5) 16548 | -4/Upper Caves | Identified exit to Upper Caves 16566 | -4/Upper Caves | Entered another Upper Caves area 16596 | -4/Upper Caves | Learned Research emergency access door positions 16599 | -4/Upper Caves | Build established: Wizard-Scout 16624 | -4/Upper Caves | Discovered new exit (range 18) 16632 | -4/Upper Caves | Identified exit to Warlord 16633 | -4/Upper Caves | Learned Research emergency access door positions 16633 | -4/Upper Caves | Entered Warlord 16646 | -4/Warlord | Discovered new exit (range 9) 16647 | -4/Warlord | Identified exit to Proximity Caves 16656 | -4/Warlord | Opened side exit 16738 | -4/Warlord | Identified Exp. System Shield 16755 | -4/Warlord | Met Warlord 16780 | -4/Warlord | Warlord's base attacked by MAIN.C 16817 | -4/Warlord | Found Prototype Piercing Weapon 16817 | -4/Warlord | Identified Vortex Lance 16992 | -4/Warlord | Opened Warlord's prototype stash 17130 | -4/Warlord | Warlord forces counterattacked 17420 | -4/Warlord | Spotted Striker 17455 | -4/Warlord | Warlord base infiltrated, sounded retreat 17564 | -4/Warlord | Spotted Striker 17600 | -4/Warlord | Lost 3 allies 17671 | -4/Warlord | Entered Proximity Caves 17676 | -3/Proximity Caves | Lost 3 allies 17677 | -3/Proximity Caves | Spotted B-86 Titan 17778 | -3/Proximity Caves | Discovered new exit (range 7) 17779 | -3/Proximity Caves | Identified exit to Research 17780 | -3/Proximity Caves | Entered Research 17780 | -3/Research | Evolved 2 slots: Utility x2 17781 | -3/Research | Identified exit to Research 17936 | -3/Research | Identified exit to Testing 18040 | -3/Research | Entered Testing 18067 | -3/Testing | Protovariant out of control (PG-OO8DK26JJ4) 18067 | -3/Testing | Unleashed a protovariant (PG-OO8DK26JJ4) 18069 | -3/Testing | Spotted PG-OO8DK26JJ4 18084 | -3/Testing | Found Prototype Device 18084 | -3/Testing | Identified AEGIS Remote Shield 18098 | -3/Testing | Found Prototype Device 18098 | -3/Testing | Identified Exp. Hardlight Generator 18114 | -3/Testing | Found Prototype Hackware 18114 | -3/Testing | Identified System Mapper 18129 | -3/Testing | Found Prototype Device 18129 | -3/Testing | Identified 2N-1CE's Frost Array 18150 | -3/Testing | Found Prototype Hackware 18150 | -3/Testing | Identified Exp. Hacking Suite 18174 | -3/Testing | Build established: Wizard-Ninja 18210 | -3/Testing | Found Prototype Launcher 18210 | -3/Testing | Identified Containment Facilitator 18453 | -3/Testing | Found Gamma Bomb Array 18471 | -3/Testing | Spotted Striker 18491 | -3/Testing | Discovered exit to Research (range 18) 18530 | -3/Testing | Entered Research 18530 | -2/Research | Warlord forces began assault on 0b10 18530 | -2/Research | Evolved 2 slots: Utility x2 18534 | -2/Research | Identified exit to Quarantine 18640 | -2/Research | Research machine network offline 18702 | -2/Research | Entered Quarantine 18717 | -2/Quarantine | Found Alien Artifact 18717 | -2/Quarantine | Identified Phase Armor 18726 | -2/Quarantine | Identified exit to Access 18873 | -2/Quarantine | Found Sigix Corpse 19149 | -2/Quarantine | Found Alien Artifact 19149 | -2/Quarantine | Identified Subatomic Replicator 19161 | -2/Quarantine | Found Alien Artifact 19161 | -2/Quarantine | Identified Hpw. Transdimensional Reconstructor 19161 | -2/Quarantine | Warped through subspace 19189 | -2/Quarantine | Entered Access 19189 | -1/Access | Evolved 2 slots: Propulsion x1, Utility x1 19379 | -1/Access | Fabricated Adv. Cloaking Device? 19470 | -1/Access | Spotted B-99 Colossus 19498 | -1/Access | Identified exit to Surface 19498 | -1/Access | Identified exit to Command 19530 | -1/Access | Spotted B-99 Colossus 19582 | -1/Access | Entered Command 19599 | -1/Command | Lost 17 parts (2p7n6u2w) 19623 | -1/Command | Disengaged cave seal 19639 | -1/Command | Disengaged cave seal 19640 | -1/Command | Welcomed Warlord to Command 19672 | -1/Command | Lost 4 allies 19751 | -1/Command | Spotted B-99 Colossus 19787 | -1/Command | Spotted B-99 Colossus 19788 | -1/Command | Found Prototype Slashing Weapon 19788 | -1/Command | Identified Particle Cleaver 19809 | -1/Command | Build established: Wizard-Scout 19849 | -1/Command | Lost 17 allies 19930 | -1/Command | Found Prototype Launcher 19930 | -1/Command | Identified Enh. Gamma Bomb Array 20069 | -1/Command | Spotted Executioner 20069 | -1/Command | Spotted Executioner 20069 | -1/Command | Spotted Executioner 20069 | -1/Command | Spotted Executioner 20069 | -1/Command | Spotted Striker 20069 | -1/Command | Spotted Striker 20069 | -1/Command | Spotted Alpha 7 20069 | -1/Command | Spotted Alpha 7 20096 | -1/Command | Spotted B-99 Colossus 20138 | -1/Command | P-80 Master assimilated allied 38-49O(b) 20148 | -1/Command | Lost 23 allies 20155 | -1/Command | Spotted B-99 Colossus 20235 | *** | Escaped! Last Messages --------------- 20229_ Field strength at 25. 20229_ Field strength at 70. 20230_ Field strength at 20. 20230_ Field strength at 60. 20231_ Field strength at 90. 20231_ Field strength at 15. 20231_ Field strength at 50. 20232_ Field strength at 80. 20232_ Field strength at 10. 20232_ Field strength at 40. 20233_ Field strength at 70. 20233_ Field strength at 5. 20233_ Field strength at 30. 20234_ Field strength at 85. 20234_ Field strength at 60. 20234_ Stasis field depleted. 20234_ Field strength at 20. 20235_ Field strength at 70. 20235_ Field strength at 50. [Achievement: 20k Club] Map ----- +----------------------------------------------------+ | ?????????????????????????????????????????????????? | | ?????????????????????????????????????????????????? | | ?????????????????????????????????????????????????? | | ?????????????????????????????????????????????????? | | ?????????????????????????????????????????????????? | | ?????????????????????????????????????????????????? | | ?????????????????????????????????????????????????? | | ?????????????????????????????????????????????????? | | ?????????????????????????????????????????????????? | | ?????????????????????????????????????????????????? | | ?????????????????????????????????????????????????? | | ?????????????????????????????????????????????????? | | ???????????????????????!?????????????????????????? | | ?????????????????????????????????????????????????? | | ?????????????????????????????????????????????????? | | ?????????????????????????????????????????????????? | | ?????????????????????????????????????????????????? | | ?????????????????????????????????????????????????? | | ???????????????????##############????????????????? | | ???????????????????# #??######????????? | | ???????????????????# #### ## ###??????? | | ???????????????????# ^ # # # #####?## | | ???????????????????# i ^^ ^ =!###= | | ???????????????????# ^ g ! ]!% | | ???????????????????# "" i [ = =[ | | ???????????????????# @" Wi [ ==]% | | ???????????????????# ![[=! [ !% % | | ???????????????????# ^ [ h == ## = ! | | ???????????????????# ^^^ ^i i #b#=# == | | ???????????????????# %%% # ######### # | | ???????????????????# ###???????##### | | ???????????????????##############?????????????# ! | | ??????????????????????????????????????????????#* | | ????????????????????????????????????########## / # | | ????????????????????????????????????# / | | ????????????????????????????????????# | | ??????????????????????# ######### # | | ????????????????????# / # | | ?????????????????????# # # | | ???????????????????# ###### #+ ### | | ???????????????? ????? ??# | | ???????????????? ??? | | ?????????????????=% ?? ### | | ?????????????????%[ #?? | | ?????????????????!% % ! #?? | | ??????????????????= #######+#########+###?? | | ?????????????????? ???????????????????????? | | ??????????????????? ????????????????????????? | | ??????????????????? ?????????????????????????? | | ??????????????????? ??????????????????????????? | +----------------------------------------------------+ Best States ------------- Heat Dissipation 146 Energy Generation 58 Energy Capacity 350 Matter Stores 300 Matter Capacity 300 Sight Range 22 Robot Scan Range 18 Terrain Scan Range 16 Terrain Scan Density 185 Cloak Strength 5 Armor Coverage 1200 Propulsion Shielding 90 Evasion (%) 74 Melee Accuracy 8 Launcher Accuracy 30 Core Analysis 6 Recoil Reduction 4 Force Boost 20 Offensive Hacking 62 Defensive Hacking 38 Item Schematics ----------------- Cesium-ion Thruster | -8/Materials | Hacked Imp. Sensor Array | -8/Materials | Scanalyzed Imp. Signal Interpreter | -8/Materials | Scanalyzed Adv. Treads | -8/Materials | Scanalyzed Hvy. Armor Plating | -8/Materials | Scanalyzed Force Booster | -8/Materials | Scanalyzed Combat Drone Bay | -6/Data Miner | Free Lgt. Regenerative Plating | -6/Data Miner | Free Cld. Gravmag System | -6/Data Miner | Free Plasma Sword | -6/Data Miner | Free Exp. Heat Sink | -6/Data Miner | Free Adv. VSS Leg | -6/Data Miner | Free Graphene Brace | -6/Data Miner | Free Hvy. Gauss Cannon | -6/Data Miner | Free Adv. Salvage Targeting Computer | -6/Data Miner | Free Imp. Antigrav System | -6/Data Miner | Free Adv. Launcher Guidance Computer | -6/Data Miner | Free Hyp. Railgun | -6/Data Miner | Free Cld. Cesium-ion Thruster | -5/Factory | Scanalyzed Imp. Melee Analysis Suite | -5/Factory | Scanalyzed Enh. Optical Array | -5/Factory | Hacked Assault Drone Bay | -5/Zhirov | Free Exp. Optical Array | -5/Zhirov | Free Imp. Arc Thrower | -5/Zhirov | Free Lrn. Sensor Array | -4/Factory | Hacked Exp. System Shield | -3/Research | Scanalyzed Exp. Propulsion Shielding | -3/Research | Scanalyzed Cld. Impulse Thruster | -3/Research | Scanalyzed Adv. Cloaking Device | -2/Research | Hacked Adv. Micro-nuke Launcher | -2/Quarantine | Hacked Robot Schematics ------------------ E-15 Imp | -6/Data Miner | Free H-66 Slayer | -6/Data Miner | Free R-10 Processor | -6/Data Miner | Free M-36 Artificer | -6/Data Miner | Free L-41 Fighter | -6/Data Miner | Free Fabricated ------------ Hvy. Armor Plating | x1 | -6/Factory Adv. Cloaking Device | x1 | -1/Access Alien Tech Used ----------------- Core Expander Transdimensional Reconstructor Integrated Reactor Phase Armor Subatomic Replicator High-powered Transdimensional Reconstructor Achievements -------------- 20k Club A Powerful Ally? Armchair Analyst Brute Force Charge!!! Decoder Ring Explorer Omniscient Cartographer Ooh, Shiny! Rampage Reappropriation Subspace Traveler The Science Guy Watch This! Challenges ------------ None Game ------ Seed LatentWeaponProtection Manual? 0 Play Time 08:12:33 Cumulative 49.1 hours Start 2024.04.11 @ 23:52:39 End 2024.04.12 @ 09:44:18 Sessions 1 Manual Loads 0 Difficulty Rogue Special Mode None Game No. 29 Rogue 29 Adventurer 0 Explorer 0 Win Type 0 Total 2 Types 2/0/0/0/0/0/0/0/0 Lore% 34 Gallery% 32 Achievement% 35 Wizard Run 0 Options --------- Layout 0 ASCII 0 Keyboard 0 Movement Numpad Keybinds 0 Fullscreen 2 Font 18/SmallcapsGlow Map View 76x50 Zoom Use 0% Tactical HUD 1 Map Filters NONE Filters NONE Steam 1 RUN: 89b212b4-b11a-494e-acea-b99dd9c49787